lending/lending_fUSD_20250913
["ID","MTS","AMOUNT","RATE_DAILY","PERIOD"]
[385290426,1757749863793,-705.02,0.00031999,2]
[385290427,1757749863803,-705.02,0.00031999,2]
[385290428,1757749863813,-705.02,0.00031999,2]
[385290429,1757749863822,-705.02,0.00031999,2]
[385290430,1757749863832,-705.23593092,0.00031999,2]
[385290431,1757749863842,-796.7,0.00031999,2]
[385290432,1757749863851,-796.7,0.00031999,2]
[385290433,1757749863861,-796.7,0.00031999,2]
[385290434,1757749863872,-796.7,0.00031999,2]
[385290435,1757749863882,-796.7,0.00031999,2]
[385290436,1757749863891,-796.7,0.00031999,2]
[385290437,1757749863901,-796.7,0.00031999,2]
[385290438,1757749863911,-796.7,0.00031999,2]
[385290439,1757749863921,-796.7,0.00031999,2]
[385290440,1757749863932,-796.7,0.00031999,2]
[385290441,1757749863942,-796.7,0.00031999,2]
[385290442,1757749863952,-796.7,0.00031999,2]
[385290443,1757749863962,-796.7,0.00031999,2]
[385290444,1757749863972,-796.7,0.00031999,2]
[385290445,1757749863982,-796.7,0.00031999,2]
[385290446,1757749863992,-796.7,0.00031999,2]
[385290447,1757749864001,-796.7,0.00031999,2]
[385290448,1757749864010,-796.7,0.00031999,2]
[385290449,1757749864020,-796.83087462,0.00031999,2]
[385290450,1757749864030,-7344024.27199199,0.00032,2]
[385290451,1757749864818,-470.90651836,0.00031741,2]
[385290452,1757749865815,-500.0,0.00031505,2]
[385290453,1757749865827,-3995.76307064,0.00031741,2]
[385290454,1757749865839,-500.0,0.00031832,2]
[385290455,1757749865850,-500.0,0.00031854,2]
[385290456,1757749865860,-500.0,0.00031865,2]
[385290457,1757749865870,-500.0,0.00031998,2]
[385290458,1757749865880,-6902.6972512,0.00032,2]
[385290459,1757749865893,-91129.9990042,0.00032,2]
[385290460,1757749865905,-1626.3036075,0.00032,2]
[385290463,1757750562086,81.19110622,0.00014834,2]
[385290464,1757750562109,85.63889378,0.00014834,2]
[385290465,1757750816121,-233.19245036,0.000249,2]
[385290468,1757751031583,-1367.4436658,0.000249,2]
[385290469,1757751031594,-160.0,0.00026,7]
[385290470,1757751031605,-330.34957109,0.00026567,2]
[385290471,1757751031614,-600.65786271,0.00026568,2]
[385290472,1757751031957,-6802.47112031,0.00026568,2]
[385290473,1757751031966,-1151.0,0.00027389,2]
[385290474,1757751031976,-157.86,0.00027397,2]
[385290475,1757751031985,-512.0,0.000279,2]
[385290476,1757751031995,-502.0,0.0002908,2]
[385290477,1757751032004,-150.0,0.00029236,2]
[385290478,1757751032014,-216.61914177,0.00029369,2]
[385290480,1757751032024,-254.05948726,0.00029502,2]
[385290482,1757751032033,-291.49983275,0.00029636,2]
[385290484,1757751032042,-190.33,0.00029636,2]
[385290486,1757751032052,-150.0,0.00029668,7]
[385290488,1757751032061,-166.83,0.00029669,2]
[385290490,1757751032070,-851.93,0.00029669,2]
[385290492,1757751032080,-163.1,0.00029757,30]
[385290494,1757751032093,-328.94017824,0.00029769,2]
[385290496,1757751032103,-200.0,0.00029799,2]
[385290498,1757751032112,-366.38052373,0.00029902,2]
[385290500,1757751032121,-600.0,0.00029905,2]
[385290502,1757751032131,-1047.68,0.00029923,2]
[385290504,1757751032140,-1000.0,0.00029923,2]
[385290506,1757751032149,-403.82086923,0.00030035,2]
[385290508,1757751032158,-441.26121472,0.00030169,2]
[385290510,1757751032166,-491.0,0.0003027,2]
[385290512,1757751032175,-277.35679052,0.00030284,2]
[385290514,1757751032185,-478.70156021,0.00030302,2]
[385290516,1757751032194,-516.1419057,0.00030435,2]
[385290518,1757751032203,-600.0,0.00030453,2]
[385290520,1757751032213,-553.58225119,0.00030569,2]
[385290522,1757751032222,-591.02259668,0.00030702,2]
[385290524,1757751032232,-628.46294217,0.00030835,2]
[385290526,1757751032241,-665.90328766,0.00030968,2]
[385290528,1757751032250,-600.0,0.00031001,2]
[385290530,1757751032259,-185.483,0.00031056,28]
[385290532,1757751032268,-703.34363315,0.00031102,2]
[385290535,1757751032278,-200.0,0.000312,11]
[385290538,1757751032286,-740.78397865,0.00031235,2]
[385290541,1757751032295,-500.0,0.000313,11]
[385290544,1757751032303,-778.22432414,0.00031368,2]
[385290547,1757751032312,-700.0,0.000314,11]
[385290550,1757751032321,-481.0,0.0003145,2]
[385290552,1757751032331,-1000.0,0.000315,11]
[385290554,1757751032340,-815.66466963,0.00031502,2]
[385290556,1757751032349,-159.97547692,0.00031503,2]
[385290558,1757751032358,-189.10853597,0.00031504,2]
[385290560,1757751032370,-210.89146403,0.00031504,2]
[385290562,1757751032379,-400.0,0.00031504,2]
[385290564,1757751032388,-400.0,0.00031504,2]
[385290566,1757751032398,-400.0,0.00031504,2]
[385290568,1757751032407,-400.0,0.00031504,2]
[385290570,1757751032416,-400.0,0.00031504,2]
[385290572,1757751032425,-1486.28,0.00031504,2]
[385290574,1757751032434,-793.21,0.00031504,2]
[385290576,1757751032443,-400.0,0.00031504,2]
[385290578,1757751032451,-623.81,0.00031504,2]
[385290580,1757751032460,-1956.08,0.00031504,2]
[385290582,1757751032469,-574.79,0.00031504,2]
[385290584,1757751032478,-400.0,0.00031504,2]
[385290586,1757751032487,-400.0,0.00031504,2]
[385290588,1757751032496,-2846.9,0.00031504,2]
[385290590,1757751032504,-558.4,0.00031504,2]
[385290591,1757751032513,-666.7,0.00031504,2]
[385290593,1757751032523,-65.5975564,0.00031504,2]
[385290596,1757751032534,-420.1824436,0.00031504,2]
[385290597,1757751032542,-1230.72355635,0.00031504,2]
[385290598,1757751032553,-1454.44644365,0.00031504,2]
[385290599,1757751032562,-1084.54,0.00031504,2]
[385290600,1757751032570,-400.0,0.00031504,2]
[385290601,1757751032579,-1569.86,0.00031504,2]
[385290602,1757751032588,-672.55,0.00031504,2]
[385290603,1757751032597,-693.15,0.00031504,2]
[385290604,1757751032606,-1000.0,0.00031504,2]
[385290605,1757751032615,-907.29,0.00031504,2]
[385290606,1757751032624,-489.75,0.00031504,2]
[385290607,1757751032634,-400.0,0.00031504,2]
[385290608,1757751032643,-1287.14,0.00031504,2]
[385290609,1757751032652,-780.07,0.00031504,2]
[385290610,1757751032661,-1639.5,0.00031504,2]
[385290611,1757751032669,-874.82,0.00031504,2]
[385290612,1757751032677,-903.92,0.00031504,2]
[385290613,1757751032685,-591.0,0.00031504,2]
[385290614,1757751032693,-2649.1,0.00031504,2]
[385290615,1757751032701,-851.97,0.00031504,2]
[385290617,1757751032709,-2377.04,0.00031504,2]
[385290619,1757751032718,-987.98,0.00031504,2]
[385290621,1757751032727,-1156.71,0.00031504,2]
[385290623,1757751032736,-1228.88,0.00031504,2]
[385290625,1757751032744,-996.66,0.00031504,2]
[385290627,1757751032753,-400.0,0.00031505,2]
[385290629,1757751032763,-400.0,0.00031505,2]
[385290630,1757751032771,-401.79041131,0.00031505,2]
[385290632,1757751032781,-407.41435702,0.00031505,2]
[385290634,1757751032790,-359.95055494,0.00031505,2]
[385290637,1757751032800,-400.0,0.00031505,2]
[385290638,1757751032809,-400.0,0.00031505,2]
[385290640,1757751032820,-400.0,0.00031505,2]
[385290642,1757751032829,-401.83577478,0.00031505,2]
[385290644,1757751032839,-400.0,0.00031505,2]
[385290646,1757751032848,-400.0,0.00031505,2]
[385290648,1757751032858,-400.0,0.00031505,2]
[385290650,1757751032867,-400.0,0.00031505,2]
[385290652,1757751032877,-401.98528975,0.00031505,2]
[385290654,1757751032886,-400.0,0.00031505,2]
[385290656,1757751032896,-400.0,0.00031505,2]
[385290658,1757751032905,-400.0,0.00031505,2]
[385290660,1757751032915,-874.13,0.00031505,2]
[385290662,1757751032924,-1164.07,0.00031505,2]
[385290664,1757751032933,-793.98,0.00031505,2]
[385290666,1757751032942,-400.0,0.00031505,2]
[385290668,1757751032951,-402.31873785,0.00031505,2]
[385290670,1757751032960,-400.0,0.00031505,2]
[385290672,1757751032969,-400.0,0.00031505,2]
[385290674,1757751032978,-400.0,0.00031505,2]
[385290676,1757751032989,-400.0,0.00031505,2]
[385290678,1757751033001,-195.409436,0.00031505,2]
[385290680,1757751033013,-778.21,0.00031505,2]
[385290682,1757751033023,-815.55,0.00031505,2]
[385290684,1757751033033,-653.36,0.00031505,2]
[385290686,1757751033042,-792.17,0.00031505,2]
[385290688,1757751033051,-680.24,0.00031505,2]
[385290690,1757751033061,-631.08,0.00031505,2]
[385290692,1757751033070,-628.32,0.00031505,2]
[385290694,1757751033079,-258.23031466,0.00031505,2]
[385290697,1757751033096,-141.76968534,0.00031505,2]
[385290699,1757751033105,-1008.39,0.00031505,2]
[385290701,1757751033115,-241.01179415,0.00031505,2]
[385290704,1757751033136,-158.98820585,0.00031505,2]
[385290706,1757751033146,-400.0,0.00031505,2]
[385290708,1757751033155,-685.71,0.00031505,2]
[385290710,1757751033167,-701.19,0.00031505,2]
[385290712,1757751033177,-480.16226033,0.00031505,2]
[385290747,1757751038099,-351.43773967,0.00031505,2]
[385290749,1757751038108,-737.79,0.00031505,2]
[385290752,1757751038119,-91.59248641,0.00031505,2]
[385290754,1757751038132,-308.40751359,0.00031505,2]
[385290756,1757751038141,-357.03658577,0.00031505,2]
[385290758,1757751038153,-42.96341423,0.00031505,2]
[385290760,1757751038164,-400.0,0.00031505,2]
[385290762,1757751038174,-347.77720724,0.00031505,2]
[385290767,1757751038208,-229.63279276,0.00031505,2]
[385290769,1757751038217,-410.98,0.00031505,2]
[385290771,1757751038226,-400.0,0.00031505,2]
[385290773,1757751038236,-400.0,0.00031505,2]
[385290775,1757751038245,-610.6,0.00031505,2]
[385290777,1757751038254,-696.74,0.00031505,2]
[385290779,1757751038263,-693.68,0.00031505,2]
[385290781,1757751038273,-599.48,0.00031505,2]
[385290783,1757751038282,-580.79,0.00031505,2]
[385290785,1757751038291,-605.8,0.00031505,2]
[385290787,1757751038301,-575.53,0.00031505,2]
[385290789,1757751038310,-590.9,0.00031505,2]
[385290791,1757751038319,-519.19,0.00031505,2]
[385290793,1757751038328,-656.98,0.00031505,2]
[385290795,1757751038337,-587.49,0.00031505,2]
[385290797,1757751038347,-400.0,0.00031505,2]
[385290799,1757751038356,-1108.71,0.00031505,2]
[385290801,1757751038365,-702.64,0.00031505,2]
[385290803,1757751038375,-469.69,0.00031505,2]
[385290805,1757751038384,-722.26,0.00031505,2]
[385290807,1757751038393,-508.73,0.00031505,2]
[385290809,1757751038403,-487.16,0.00031505,2]
[385290811,1757751038413,-669.4,0.00031505,2]
[385290813,1757751038422,-1234.83,0.00031505,2]
[385290815,1757751038431,-400.0,0.00031505,2]
[385290817,1757751038440,-537.82,0.00031505,2]
[385290819,1757751038449,-148.46729048,0.00031505,2]
[385290830,1757751038546,-321.51270952,0.00031505,2]
[385290832,1757751038555,-427.89,0.00031505,2]
[385290834,1757751038565,-156.41483294,0.00031505,2]
[385290936,1757751039442,-283.74516706,0.00031505,2]
[385290938,1757751039452,-480.25483294,0.00031505,2]
[385290940,1757751039464,-264.50516706,0.00031505,2]
[385290942,1757751039474,-247.25483304,0.00031505,2]
[385290944,1757751039486,-152.74516696,0.00031505,2]
[385290945,1757751039495,-348.33481778,0.00031505,2]
[385291274,1757751043091,-25.91027225,0.00031504,2]
[385291290,1757751043234,-374.08972775,0.00031504,2]
[385291292,1757751043243,-354.51518222,0.00031505,2]
[385291294,1757751043253,-506.47,0.00031505,2]
[385291296,1757751043263,-400.0,0.00031505,2]
[385291298,1757751043272,-400.0,0.00031505,2]
[385291300,1757751043281,-714.8,0.00031505,2]
[385291302,1757751043291,-889.51,0.00031505,2]
[385291304,1757751043301,-400.0,0.00031505,2]
[385291306,1757751043311,-400.0,0.00031505,2]
[385291308,1757751043321,-3929.61,0.00031505,2]
[385291310,1757751043330,-805.15,0.00031505,2]
[385291312,1757751043339,-502.71,0.00031505,2]
[385291314,1757751043348,-899.98,0.00031505,2]
[385291316,1757751043358,-400.0,0.00031505,2]
[385291318,1757751043367,-400.0,0.00031505,2]
[385291320,1757751043376,-758.98,0.00031505,2]
[385291322,1757751043385,-625.49,0.00031505,2]
[385291324,1757751043394,-699.53,0.00031505,2]
[385291326,1757751043403,-623.72,0.00031505,2]
[385291328,1757751043413,-639.85,0.00031505,2]
[385291330,1757751043422,-1090.97,0.00031505,2]
[385291332,1757751043432,-1112.5,0.00031505,2]
[385291334,1757751043441,-623.02,0.00031505,2]
[385291336,1757751043450,-676.26,0.00031505,2]
[385291338,1757751043460,-659.92,0.00031505,2]
[385291340,1757751043469,-500.54,0.00031505,2]
[385291342,1757751043479,-645.49,0.00031505,2]
[385291345,1757751043488,-597.27,0.00031505,2]
[385291347,1757751043497,-577.8,0.00031505,2]
[385291349,1757751043507,-927.91,0.00031505,2]
[385291351,1757751043516,-400.0,0.00031505,2]
[385291353,1757751043525,-525.63,0.00031505,2]
[385291355,1757751043534,-693.81,0.00031505,2]
[385291357,1757751043544,-504.0563827,0.00031505,2]
[385291359,1757751043556,-265.2236173,0.00031505,2]
[385291361,1757751043565,-599.69,0.00031505,2]
[385291363,1757751043574,-113.97422841,0.00031505,2]
[385291546,1757751045403,-291.84687339,0.00031505,2]
[385291548,1757751045413,-64.03312661,0.00031505,2]
[385291553,1757751045449,-728.69687339,0.00031505,2]
[385291555,1757751045459,-716.42,0.00031505,2]
[385291557,1757751045468,-666.88,0.00031505,2]
[385291559,1757751045477,-400.0,0.00031505,2]
[385291561,1757751045487,-44.61758803,0.00031505,2]
[385291565,1757751045513,-355.38241197,0.00031505,2]
[385291567,1757751045523,-684.25,0.00031505,2]
[385291569,1757751045533,-160.79682927,0.00031505,2]
[385292169,1757751069999,150.0,0.000301,120]
[385292174,1757752123515,999.0,0.00030136,120]
[385292175,1757752150678,-426.57766004,0.00019949,2]
[385292176,1757752150703,-4418.47491596,0.0001995,15]
[385292177,1757752164140,-777.75270923,0.0001995,15]
[385292185,1757752231630,-333.64809428,0.00021,2]
[385292186,1757752231640,-5000.00114968,0.00024,5]
[385292187,1757752231649,-605.0,0.00024899,2]
[385292188,1757752231659,-2592.65843124,0.000249,2]
[385292189,1757752231668,-1354.10760345,0.000249,2]
[385292190,1757752231677,-300.0,0.00025784,2]
[385292191,1757752231686,-866.04274673,0.00025785,2]
[385292192,1757752231695,-151.79,0.00027397,2]
[385292193,1757752231704,-150.0,0.00029201,2]
[385292194,1757752231714,-204.46485439,0.00029334,2]
[385292195,1757752231723,-239.80445885,0.00029467,2]
[385292196,1757752231733,-275.14406331,0.000296,2]
[385292197,1757752231742,-310.48366777,0.00029733,2]
[385292198,1757752231752,-200.0,0.00029775,2]
[385292199,1757752231760,-163.1,0.00029823,30]
[385292200,1757752231770,-345.82327223,0.00029866,2]
[385292201,1757752231779,-381.1628767,0.00029999,2]
[385292202,1757752231792,-4448.02,0.00030021,2]
[385292203,1757752231801,-643.81,0.00030061,2]
[385292204,1757752231811,-172.76,0.00030063,2]
[385292205,1757752231820,-150.0,0.00030075,7]
[385292206,1757752231829,-600.0,0.00030128,2]
[385292207,1757752231839,-202.65131114,0.00030128,2]
[385292208,1757752231848,-151.0,0.00030128,2]
[385292209,1757752231857,-151.0,0.00030128,2]
[385292210,1757752231870,-241.84583989,0.00030128,2]
[385292211,1757752231880,-500.0,0.00030128,2]
[385292212,1757752232139,-202.07169527,0.00030128,2]
[385292213,1757752232156,-416.50248116,0.00030133,2]
[385292214,1757752232166,-166.48079946,0.00030136,7]
[385292215,1757752232195,-491.0360497,0.00030136,7]
[385292217,1757752232206,-342.48315084,0.00030136,7]
[385292219,1757752232224,-405.95789884,0.00030146,2]
[385292222,1757752232235,-280.00572687,0.00030146,2]
[385292224,1757752232247,-1256.08637429,0.00030146,2]
[385292226,1757752232256,-1531.65211726,0.00030146,2]
[385292228,1757752232268,-2495.415559,0.00030146,2]
[385292232,1757752232298,-972.93232374,0.00030146,2]
[385292234,1757752232307,-3207.77960623,0.00030199,2]
[385292236,1757752232322,-1.51039377,0.00030199,2]
[385292238,1757752232331,-1136.98,0.00030246,2]
[385292240,1757752232340,-152.0,0.00030259,3]
[385292241,1757752232349,-451.84208562,0.00030266,2]
[385292242,1757752232359,-151.0,0.00030278,2]
[385292243,1757752232368,-670.58624095,0.00030278,2]
[385292244,1757752232377,-160.0,0.00030278,2]
[385292245,1757752232386,-277.35679052,0.00030278,2]
[385292246,1757752232395,-322.6107,0.00030278,2]
[385292247,1757752232406,-810.52,0.00030299,35]
[385292248,1757752232415,-487.18169008,0.00030399,2]
[385292249,1757752232424,-434.0,0.000305,2]
[385292250,1757752232433,-522.52129454,0.00030532,2]
[385292251,1757752232443,-557.86089901,0.00030665,2]
[385292252,1757752232452,-600.0,0.00030676,2]
[385292253,1757752232462,-177.87,0.00030773,2]
[385292254,1757752232471,-593.20050347,0.00030798,2]
[385292255,1757752232480,-7046.4910261,0.00030927,2]
[385292256,1757752232507,-600.95660245,0.00030927,2]
[385292257,1757752232517,-628.54010793,0.00030931,2]
[385292258,1757752232526,-1000.0,0.00030958,7]
[385292259,1757752232535,-663.87971239,0.00031064,2]
[385292260,1757752232544,-699.21931685,0.00031198,2]
[385292261,1757752232553,-734.55892132,0.00031331,2]
[385292262,1757752232562,-257.12,0.0003144,3]
[385292263,1757752232571,-769.89852578,0.00031464,2]
[385292264,1757752232580,-4247.9708733,0.00031505,2]
[385292265,1757752232589,-1226.7053408,0.00031505,2]
[385292266,1757752232598,-554.36,0.00031505,2]
[385292267,1757752232607,-400.0,0.00031505,2]
[385292268,1757752232616,-400.0,0.00031505,2]
[385292269,1757752232626,-608.19,0.00031505,2]
[385292270,1757752232636,-526.95,0.00031505,2]
[385292271,1757752232646,-878.46,0.00031505,2]
[385292272,1757752232655,-606.21,0.00031505,2]
[385292273,1757752232664,-697.25,0.00031505,2]
[385292274,1757752232673,-400.0,0.00031505,2]
[385292275,1757752232683,-463.5,0.00031505,2]
[385292276,1757752232692,-400.0,0.00031505,2]
[385292277,1757752232701,-620.41,0.00031505,2]
[385292278,1757752232710,-684.48,0.00031505,2]
[385292279,1757752232719,-400.0,0.00031505,2]
[385292280,1757752232736,-683.79,0.00031505,2]
[385292281,1757752232748,-691.29,0.00031505,2]
[385292282,1757752232757,-595.17,0.00031505,2]
[385292283,1757752232766,-852.3,0.00031505,2]
[385292284,1757752232776,-400.0,0.00031505,2]
[385292285,1757752232789,-400.0,0.00031505,2]
[385292286,1757752232798,-991.66,0.00031505,2]
[385292287,1757752232807,-400.0,0.00031505,2]
[385292288,1757752232817,-760.46,0.00031505,2]
[385292289,1757752232827,-649.44,0.00031505,2]
[385292290,1757752232836,-400.0,0.00031505,2]
[385292291,1757752232846,-400.0,0.00031505,2]
[385292292,1757752232855,-400.0,0.00031505,2]
[385292293,1757752232864,-400.0,0.00031505,2]
[385292294,1757752232874,-400.0,0.00031505,2]
[385292295,1757752232883,-476.81,0.00031505,2]
[385292296,1757752232893,-400.0,0.00031505,2]
[385292297,1757752232902,-3335.2815765,0.00031505,2]
[385292298,1757752232911,-158.2456716,0.00031505,2]
[385292299,1757752232922,-805.23813024,0.00031597,2]
[385292300,1757752232931,-256.297,0.00031619,2]
[385292301,1757752232941,-734.00959314,0.00031619,2]
[385292302,1757752232950,-165.63399641,0.00031628,2]
[385292303,1757752232960,-5000.0,0.0003164,2]
[385292304,1757752232969,-287.61899177,0.00031647,2]
[385292305,1757752232980,-734.0095931,0.0003165,2]
[385292306,1757752232989,-200.0,0.00031677,2]
[385292307,1757752232998,-425.0,0.0003168,2]
[385292308,1757752233008,-734.0095931,0.00031681,2]
[385292309,1757752233018,-1542.48,0.000317,3]
[385292310,1757752233027,-734.0095931,0.00031713,2]
[385292311,1757752233038,-481.66,0.00031718,2]
[385292312,1757752233048,-964.71,0.00031718,2]
[385292313,1757752233058,-711.78,0.00031718,2]
[385292314,1757752233068,-1505.74,0.00031718,2]
[385292315,1757752233078,-465.03,0.00031718,2]
[385292316,1757752233095,-597.6,0.00031718,2]
[385292317,1757752233105,-400.0,0.00031718,2]
[385292318,1757752233115,-892.77,0.00031718,2]
[385292319,1757752233126,-673.34,0.00031718,2]
[385292320,1757752233136,-785.95,0.00031718,2]
[385292321,1757752233145,-400.0,0.00031718,2]
[385292322,1757752233156,-1314.53,0.00031718,2]
[385292323,1757752233166,-1037.9,0.00031718,2]
[385292324,1757752233176,-695.9,0.00031718,2]
[385292325,1757752233186,-2327.78,0.00031718,2]
[385292326,1757752233196,-402.35316984,0.00031718,2]
[385292327,1757752233206,-613.17,0.00031718,2]
[385292328,1757752233215,-521.84,0.00031718,2]
[385292329,1757752233225,-400.0,0.00031718,2]
[385292330,1757752233236,-400.0,0.00031718,2]
[385292331,1757752233245,-638.75,0.00031718,2]
[385292332,1757752233255,-7856.34,0.00031718,2]
[385292333,1757752233264,-401.79913306,0.00031718,2]
[385292334,1757752233274,-410.26911194,0.00031718,2]
[385292335,1757752233285,-680.43,0.00031718,2]
[385292336,1757752233296,-400.0,0.00031718,2]
[385292337,1757752233306,-400.0,0.00031718,2]
[385292338,1757752233315,-618.67,0.00031718,2]
[385292339,1757752233324,-467.93,0.00031718,2]
[385292340,1757752233334,-490.84,0.00031718,2]
[385292341,1757752233344,-400.0,0.00031718,2]
[385292342,1757752233354,-400.0,0.00031718,2]
[385292343,1757752233363,-400.0,0.00031718,2]
[385292344,1757752233373,-400.0,0.00031718,2]
[385292345,1757752233382,-467.7,0.00031718,2]
[385292346,1757752233392,-420.22,0.00031718,2]
[385292347,1757752233401,-400.0,0.00031718,2]
[385292348,1757752233411,-400.0,0.00031718,2]
[385292349,1757752233421,-400.0,0.00031718,2]
[385292350,1757752233430,-400.0,0.00031718,2]
[385292351,1757752233441,-402.17531358,0.00031718,2]
[385292352,1757752233450,-400.0,0.00031718,2]
[385292353,1757752233461,-400.0,0.00031726,2]
[385292354,1757752233470,-400.0,0.00031726,2]
[385292355,1757752233480,-400.0,0.00031726,2]
[385292356,1757752233489,-2484.5,0.00031727,2]
[385292357,1757752233499,-856.89,0.00031727,2]
[385292358,1757752233508,-556.59,0.00031727,2]
[385292359,1757752233518,-169.770821,0.00031727,2]
[385292360,1757752233528,-150.866426,0.00031727,2]
[385292361,1757752233538,-3514.638339,0.00031727,2]
[385292362,1757752233548,-4280.558356,0.00031727,2]
[385292363,1757752233561,-1687.74,0.00031727,2]
[385292364,1757752233580,-1092.49,0.00031727,2]
[385292365,1757752233594,-400.0,0.00031727,2]
[385292366,1757752233613,-735.99,0.00031727,2]
[385292367,1757752233625,-752.14,0.00031727,2]
[385292368,1757752233635,-839.37,0.00031727,2]
[385292369,1757752233645,-519.22,0.00031727,2]
[385292370,1757752233655,-483.14,0.00031727,2]
[385292371,1757752233666,-546.43,0.00031727,2]
[385292372,1757752233676,-482.53,0.00031727,2]
[385292373,1757752233688,-1520.28,0.00031727,2]
[385292374,1757752233698,-503.28,0.00031727,2]
[385292375,1757752233707,-753.57,0.00031727,2]
[385292376,1757752233716,-482.14,0.00031727,2]
[385292377,1757752233726,-618.87,0.00031727,2]
[385292378,1757752233736,-641.61,0.00031727,2]
[385292379,1757752233745,-403.97,0.00031727,2]
[385292380,1757752233755,-532.61,0.00031727,2]
[385292381,1757752233764,-1593.87,0.00031727,2]
[385292382,1757752233774,-481.1,0.00031727,2]
[385292383,1757752233783,-2722.38,0.00031727,2]
[385292384,1757752233796,-471.78,0.00031727,2]
[385292385,1757752233806,-400.0,0.00031727,2]
[385292386,1757752233816,-1679.65,0.00031727,2]
[385292387,1757752233826,-587.31,0.00031727,2]
[385292388,1757752233840,-2927.77,0.00031727,2]
[385292389,1757752233850,-1030.43,0.00031727,2]
[385292390,1757752233861,-1476.25,0.00031727,2]
[385292391,1757752233871,-401.07437952,0.00031727,2]
[385292392,1757752233880,-400.0,0.00031728,2]
[385292393,1757752233889,-400.0,0.00031728,2]
[385292394,1757752233899,-400.0,0.00031728,2]
[385292395,1757752233908,-432.87394523,0.00031728,2]
[385292396,1757752233917,-400.0,0.00031728,2]
[385292397,1757752233926,-402.3496025,0.00031728,2]
[385292398,1757752233936,-250.71740002,0.00031728,2]
[385292399,1757752233946,-400.0,0.00031728,2]
[385292400,1757752233955,-714.63,0.00031728,2]
[385292401,1757752233964,-455.83583617,0.00031728,2]
[385292402,1757752233973,-400.0,0.00031728,2]
[385292403,1757752233983,-400.0,0.00031728,2]
[385292404,1757752233993,-615.3,0.00031728,2]
[385292405,1757752234003,-400.0,0.00031728,2]
[385292406,1757752234013,-1635.58,0.00031728,2]
[385292407,1757752234023,-400.0,0.00031728,2]
[385292408,1757752234033,-418.08,0.00031728,2]
[385292409,1757752234043,-408.81957757,0.00031728,2]
[385292410,1757752234053,-933.59,0.00031728,2]
[385292411,1757752234063,-549.85,0.00031728,2]
[385292412,1757752234073,-400.0,0.00031728,2]
[385292413,1757752234083,-400.0,0.00031728,2]
[385292414,1757752234093,-909.59,0.00031728,2]
[385292415,1757752234103,-439.73742595,0.00031728,2]
[385292416,1757752234112,-518.84,0.00031728,2]
[385292417,1757752234122,-752.58,0.00031728,2]
[385292418,1757752234132,-400.0,0.00031728,2]
[385292419,1757752234141,-792.28,0.00031728,2]
[385292421,1757752234150,-400.0,0.00031728,2]
[385292422,1757752234159,-1072.73,0.00031728,2]
[385292423,1757752234169,-400.0,0.00031728,2]
[385292424,1757752234178,-505.77,0.00031728,2]
[385292425,1757752234188,-400.0,0.00031728,2]
[385292426,1757752234197,-402.77134686,0.00031728,2]
[385292427,1757752234207,-429.38084928,0.00031728,2]
[385292428,1757752234216,-400.0,0.00031728,2]
[385292429,1757752234226,-400.0,0.00031728,2]
[385292430,1757752234236,-794.24,0.00031728,2]